fUSD/lending_fUSD_20240913
["ID","MTS","AMOUNT","RATE_DAILY","PERIOD"]
[337912292,1726204249394,-1146.82366185,0.0001351,2]
[337912361,1726204250280,-367.69336575,0.0001351,2]
[337912363,1726204250291,-369.12270208,0.0001351,2]
[337912365,1726204250301,-1164.90682513,0.0001351,2]
[337912366,1726204250321,-1068.483673,0.0001351,2]
[337912368,1726204250330,-3458.273258,0.0001351,2]
[337912370,1726204250341,-447.426742,0.0001351,2]
[337912372,1726204250350,-38.75825801,0.0001351,2]
[337912374,1726204250360,-1928.60987622,0.0001351,2]
[337912376,1726204250371,-934.76015059,0.0001351,2]
[337912378,1726204250381,-7.72171518,0.0001351,2]
[337912380,1726204250390,-1884.22,0.0001351,2]
[337912382,1726204250399,-1710.69,0.0001351,2]
[337912384,1726204250408,-6431.45675576,0.0001351,2]
[337912386,1726204250419,-1464.06406546,0.0001351,2]
[337912388,1726204250430,-3509.37917878,0.0001351,2]
[337912390,1726204250439,-2016.86,0.0001351,2]
[337912392,1726204250449,-955.21,0.0001351,2]
[337912394,1726204250458,-3494.75379054,0.0001351,2]
[337912396,1726204250469,-6669.71620946,0.0001351,2]
[337912398,1726204250479,-12667.51,0.0001351,2]
[337912400,1726204250487,-1648.83,0.0001351,2]
[337912402,1726204250497,-951.53,0.0001351,2]
[337912404,1726204250506,-3265.75,0.0001351,2]
[337912406,1726204250515,-1231.98,0.0001351,2]
[337912408,1726204250524,-1339.53,0.0001351,2]
[337912410,1726204250533,-500.0,0.0001351,2]
[337912412,1726204250542,-826.43,0.0001351,2]
[337912413,1726204250551,-5488.87,0.0001351,2]
[337912415,1726204250560,-2095.23098857,0.00013511,2]
[337912418,1726204250571,-501.83901143,0.00013511,2]
[337912419,1726204250580,-500.0,0.00013511,2]
[337912421,1726204250589,-500.0,0.00013511,2]
[337912423,1726204250598,-500.0,0.00013511,2]
[337912425,1726204250608,-500.0,0.00013511,2]
[337912427,1726204250617,-500.0,0.00013511,2]
[337912429,1726204250626,-500.0,0.00013511,2]
[337912430,1726204250635,-500.0,0.00013511,2]
[337912432,1726204250644,-3102.2,0.00013511,2]
[337912434,1726204250653,-3219.73,0.00013511,2]
[337912436,1726204250662,-1660.72,0.00013511,2]
[337912438,1726204250672,-500.0,0.00013511,2]
[337912440,1726204250681,-500.0,0.00013511,2]
[337912442,1726204250692,-500.0,0.00013511,2]
[337912444,1726204250703,-830.35,0.00013511,2]
[337912447,1726204250713,-500.0,0.00013511,2]
[337912448,1726204250722,-3104.55,0.00013511,2]
[337912450,1726204250731,-500.0,0.00013511,2]
[337912452,1726204250740,-1033.21,0.00013511,2]
[337912454,1726204250749,-500.0,0.00013511,2]
[337912456,1726204250758,-913.95,0.00013511,2]
[337912458,1726204250766,-611.2,0.00013511,2]
[337912460,1726204250775,-500.0,0.00013511,2]
[337912462,1726204250784,-500.0,0.00013511,2]
[337912464,1726204250793,-691.1,0.00013511,2]
[337912466,1726204250803,-669.05,0.00013511,2]
[337912468,1726204250811,-2522.79,0.00013511,2]
[337912470,1726204250820,-500.0,0.00013511,2]
[337912471,1726204250829,-1765.73,0.00013511,2]
[337912473,1726204250838,-500.0,0.00013511,2]
[337912475,1726204250847,-755.57,0.00013511,2]
[337912477,1726204250856,-500.0,0.00013511,2]
[337912479,1726204250865,-500.0,0.00013511,2]
[337912481,1726204250874,-500.0,0.00013511,2]
[337912483,1726204250883,-500.0,0.00013511,2]
[337912485,1726204250891,-3505.48,0.00013511,2]
[337912486,1726204250900,-567.59,0.00013511,2]
[337912488,1726204250910,-1039.95,0.00013511,2]
[337912490,1726204250919,-594.76472369,0.00013511,2]
[337912492,1726204250928,-500.0,0.00013511,2]
[337912494,1726204250938,-3512.39,0.00013511,2]
[337912496,1726204250947,-2661.33,0.00013511,2]
[337912498,1726204250957,-712.38,0.00013511,2]
[337912500,1726204250966,-500.0,0.00013511,2]
[337912502,1726204250975,-1717.33,0.00013511,2]
[337912504,1726204250984,-3474.38,0.00013511,2]
[337912506,1726204250993,-500.0,0.00013511,2]
[337912508,1726204251002,-683.3,0.00013511,2]
[337912510,1726204251011,-500.0,0.00013511,2]
[337912512,1726204251020,-641.72,0.00013511,2]
[337912514,1726204251029,-882.73,0.00013511,2]
[337912516,1726204251038,-500.0,0.00013511,2]
[337912518,1726204251046,-500.0,0.00013511,2]
[337912520,1726204251055,-500.0,0.00013511,2]
[337912522,1726204251064,-500.0,0.00013511,2]
[337912523,1726204251073,-500.0,0.00013511,2]
[337912526,1726204251083,-500.0,0.00013511,2]
[337912528,1726204251092,-500.0,0.00013511,2]
[337912530,1726204251101,-500.0,0.00013511,2]
[337912531,1726204251111,-500.0,0.00013511,2]
[337912533,1726204251120,-764.66,0.00013511,2]
[337912535,1726204251129,-721.83,0.00013511,2]
[337912537,1726204251138,-621.05,0.00013511,2]
[337912539,1726204251147,-500.0,0.00013511,2]
[337912541,1726204251156,-500.0,0.00013511,2]
[337912543,1726204251164,-1025.01,0.00013511,2]
[337912545,1726204251173,-613.65,0.00013511,2]
[337912547,1726204251183,-1502.09,0.00013511,2]
[337912549,1726204251192,-2637.77,0.00013511,2]
[337912551,1726204251201,-500.0,0.00013511,2]
[337912553,1726204251210,-500.0,0.00013511,2]
[337912555,1726204251219,-1595.88,0.00013511,2]
[337912557,1726204251230,-1881.81,0.00013511,2]
[337912559,1726204251239,-44.61737375,0.00013511,2]
[337912561,1726204251251,-455.38262625,0.00013511,2]
[337912562,1726204251261,-47.80887788,0.00013511,2]
[337912565,1726204251271,-452.19112212,0.00013511,2]
[337912567,1726204251280,-675.87529143,0.00013511,2]
[337912569,1726204251291,-99.46470857,0.00013511,2]
[337912571,1726204251300,-500.0,0.00013511,2]
[337912573,1726204251309,-312.98529143,0.00013511,2]
[337912575,1726204251321,-187.01470857,0.00013511,2]
[337912577,1726204251330,-731.33406403,0.00013511,2]
[337912579,1726204251341,-2927.37522779,0.00013511,2]
[337912581,1726204251352,-250.15070818,0.00013511,2]
[337912583,1726204251360,-198.80872146,0.00013511,2]
[337912585,1726204251371,-301.19127854,0.00013511,2]
[337912587,1726204251381,-1258.26040854,0.00013511,2]
[337912590,1726204251391,-273.88727203,0.00013511,2]
[337912592,1726204251402,-377.79231943,0.00013511,2]
[337912594,1726204251411,-500.0,0.00013511,2]
[337912596,1726204251419,-500.0,0.00013511,2]
[337912598,1726204251429,-4560.02,0.00013511,2]
[337912600,1726204251438,-500.0,0.00013511,2]
[337912602,1726204251447,-429.42774239,0.00013511,2]
[337912604,1726204251458,-70.57225761,0.00013511,2]
[337912606,1726204251467,-770.95245489,0.00013511,2]
[337912608,1726204251478,-197.43754511,0.00013511,2]
[337912610,1726204251487,-370.2010499,0.00013511,2]
[337912612,1726204251498,-129.7989501,0.00013511,2]
[337912614,1726204251507,-1019.27333562,0.00013511,2]
[337912616,1726204251518,-1721.42666438,0.00013511,2]
[337912618,1726204251527,-10.84833562,0.00013511,2]
[337912620,1726204251538,-489.15166438,0.00013511,2]
[337912622,1726204251547,-344.72821273,0.00013511,2]
[337912625,1726204251558,-155.27178727,0.00013511,2]
[337912627,1726204251567,-1283.66,0.00013511,2]
[337912629,1726204251576,-500.0,0.00013511,2]
[337912631,1726204251585,-500.0,0.00013511,2]
[337912632,1726204251594,-2352.24651431,0.00013511,2]
[337912635,1726204251604,-361.6920653,0.00013511,2]
[337912637,1726204251620,-137.67142039,0.00013511,2]
[337912639,1726204251629,-500.0,0.00013511,2]
[337912641,1726204251638,-608.56519264,0.00013511,2]
[337912644,1726204251649,-719.77480736,0.00013511,2]
[337912646,1726204251658,-500.0,0.00013511,2]
[337912647,1726204251667,-289.31540927,0.00013511,2]
[337912650,1726204251685,-219.85459073,0.00013511,2]
[337912652,1726204251694,-500.0,0.00013511,2]
[337912654,1726204251703,-500.0,0.00013511,2]
[337912655,1726204251712,-500.0,0.00013511,2]
[337912657,1726204251721,-2589.01,0.00013511,2]
[337912659,1726204251730,-500.0,0.00013511,2]
[337912661,1726204251739,-272.98541052,0.00013511,2]
[337912663,1726204251751,-757.85641077,0.00013511,2]
[337912665,1726204251762,-382.12258582,0.00013511,2]
[337912668,1726204251773,-2644.31559289,0.00013511,2]
[337912670,1726204251782,-3114.08,0.00013511,2]
[337912672,1726204251791,-500.0,0.00013511,2]
[337912674,1726204251800,-500.0,0.00013511,2]
[337912675,1726204251809,-1736.79,0.00013511,2]
[337912677,1726204251818,-1825.45,0.00013511,2]
[337912679,1726204251827,-500.0,0.00013511,2]
[337912681,1726204251837,-500.0,0.00013511,2]
[337912683,1726204251846,-659.95,0.00013511,2]
[337912685,1726204251855,-500.0,0.00013511,2]
[337912687,1726204251864,-2221.29,0.00013511,2]
[337912689,1726204251873,-500.0,0.00013511,2]
[337912691,1726204251882,-1160.28,0.00013511,2]
[337912712,1726204252072,-534.10304161,0.00013511,2]
[337912714,1726204252084,-282.94695839,0.00013511,2]
[337912716,1726204252094,-500.0,0.00013511,2]
[337912718,1726204252103,-500.0,0.00013511,2]
[337912720,1726204252112,-3752.32,0.00013511,2]
[337912722,1726204252122,-500.0,0.00013511,2]
[337912724,1726204252131,-1940.77,0.00013511,2]
[337912726,1726204252141,-500.0,0.00013511,2]
[337912727,1726204252150,-501.94,0.00013511,2]
[337912729,1726204252159,-500.0,0.00013511,2]
[337912731,1726204252169,-3282.21,0.00013511,2]
[337912733,1726204252182,-3675.92,0.00013511,2]
[337912735,1726204252194,-1628.08,0.00013511,2]
[337912737,1726204252203,-1822.87,0.00013511,2]
[337912739,1726204252212,-686.55,0.00013511,2]
[337912741,1726204252221,-2312.72,0.00013511,2]
[337912742,1726204252232,-2065.39,0.00013511,2]
[337912744,1726204252241,-500.0,0.00013511,2]
[337912746,1726204252250,-1027.49,0.00013511,2]
[337912748,1726204252261,-4462.8,0.00013511,2]
[337912750,1726204252270,-500.0,0.00013511,2]
[337912752,1726204252280,-1874.25,0.00013511,2]
[337912754,1726204252289,-500.0,0.00013511,2]
[337912756,1726204252299,-1383.94,0.00013511,2]
[337912758,1726204252311,-2343.15,0.00013511,2]
[337912760,1726204252321,-1662.46,0.00013511,2]
[337912762,1726204252330,-2692.2,0.00013511,2]
[337912764,1726204252339,-500.0,0.00013511,2]
[337912766,1726204252348,-893.04,0.00013511,2]
[337912768,1726204252357,-673.01,0.00013511,2]
[337912770,1726204252366,-1500.78,0.00013511,2]
[337912772,1726204252376,-1006.29,0.00013511,2]
[337912774,1726204252385,-1411.43,0.00013511,2]
[337912776,1726204252394,-3758.73,0.00013511,2]
[337912778,1726204252404,-500.0,0.00013511,2]
[337912780,1726204252413,-655.36,0.00013511,2]
[337912782,1726204252422,-2599.77,0.00013511,2]
[337912783,1726204252433,-500.0,0.00013511,2]
[337912785,1726204252442,-8871.75,0.00013511,2]
[337912787,1726204252451,-1741.01,0.00013511,2]
[337912789,1726204252461,-500.0,0.00013511,2]
[337912791,1726204252470,-500.0,0.00013511,2]
[337912793,1726204252480,-2183.33,0.00013511,2]
[337912795,1726204252488,-502.23,0.00013511,2]
[337912797,1726204252498,-1082.85,0.00013511,2]
[337912798,1726204252506,-3201.67,0.00013511,2]
[337912800,1726204252515,-500.0,0.00013511,2]
[337912802,1726204252524,-3027.01,0.00013511,2]
[337912804,1726204252533,-1198.32,0.00013511,2]
[337912806,1726204252542,-500.0,0.00013511,2]
[337912808,1726204252552,-500.0,0.00013511,2]
[337912810,1726204252561,-500.0,0.00013511,2]
[337912812,1726204252570,-500.0,0.00013511,2]
[337912813,1726204252579,-1375.33,0.00013511,2]
[337912815,1726204252588,-1250.81,0.00013511,2]
[337912817,1726204252598,-500.0,0.00013511,2]
[337912819,1726204252607,-1876.19,0.00013511,2]
[337912821,1726204252616,-526.38,0.00013511,2]
[337912823,1726204252625,-962.04,0.00013511,2]
[337912825,1726204252634,-500.0,0.00013511,2]
[337912827,1726204252643,-1169.07,0.00013511,2]
[337912829,1726204252652,-500.0,0.00013511,2]
[337912831,1726204252661,-5812.34,0.00013511,2]
[337912833,1726204252670,-500.0,0.00013511,2]
[337912835,1726204252680,-3361.65,0.00013511,2]
[337912837,1726204252689,-500.0,0.00013511,2]
[337912839,1726204252698,-500.0,0.00013511,2]
[337912841,1726204252707,-4434.19,0.00013511,2]
[337912843,1726204252715,-3725.83,0.00013511,2]
[337912844,1726204252724,-597.25,0.00013511,2]
[337912846,1726204252733,-1389.4,0.00013511,2]
[337912848,1726204252743,-6145.28,0.00013511,2]
[337912850,1726204252751,-818.66,0.00013511,2]
[337912852,1726204252760,-4305.18,0.00013511,2]
[337912854,1726204252769,-61412.06,0.00013511,2]
[337912856,1726204252779,-3149.03,0.00013511,2]
[337912858,1726204252788,-843.42,0.00013511,2]
[337912861,1726204252798,-500.0,0.00013511,2]
[337912863,1726204252809,-500.0,0.00013511,2]
[337912865,1726204252818,-500.0,0.00013511,2]
[337912867,1726204252827,-500.0,0.00013511,2]
[337912869,1726204252836,-760.51,0.00013511,2]
[337912871,1726204252845,-3017.23,0.00013511,2]
[337912873,1726204252854,-2852.52,0.00013511,2]
[337912874,1726204252863,-5205.92,0.00013511,2]
[337912876,1726204252872,-501.95,0.00013511,2]
[337912878,1726204252881,-2545.91,0.00013511,2]
[337912880,1726204252891,-514.7,0.00013511,2]
[337912882,1726204252900,-578.38,0.00013511,2]
[337912884,1726204252909,-3133.92,0.00013511,2]
[337912886,1726204252918,-622.03,0.00013511,2]
[337912888,1726204252928,-610.11,0.00013511,2]
[337912890,1726204252938,-5123.84,0.00013511,2]
[337912892,1726204252947,-500.0,0.00013511,2]
[337912894,1726204252956,-1858.86,0.00013511,2]
[337912896,1726204252965,-500.0,0.00013511,2]
[337912898,1726204252975,-500.0,0.00013511,2]
[337912900,1726204252984,-6069.66,0.00013511,2]
[337912902,1726204252994,-570.13,0.00013511,2]
[337912904,1726204253003,-3228.08,0.00013511,2]
[337912905,1726204253012,-500.0,0.00013511,2]
[337912907,1726204253021,-1319.68,0.00013511,2]
[337912909,1726204253030,-5215.32,0.00013511,2]
[337912911,1726204253040,-1674.76,0.00013511,2]
[337912913,1726204253049,-2630.15,0.00013511,2]
[337912915,1726204253058,-500.0,0.00013511,2]
[337912917,1726204253067,-1736.59,0.00013511,2]
[337912919,1726204253076,-4061.96,0.00013511,2]
[337912921,1726204253086,-5160.58,0.00013511,2]
[337912923,1726204253096,-1729.06,0.00013511,2]
[337912925,1726204253106,-6139.49,0.00013511,2]
[337912927,1726204253116,-1029.08,0.00013511,2]
[337912929,1726204253126,-624.37,0.00013511,2]
[337912931,1726204253135,-500.0,0.00013511,2]
[337912932,1726204253145,-817.41,0.00013511,2]
[337912934,1726204253155,-1345.53,0.00013511,2]
[337912936,1726204253164,-500.0,0.00013511,2]
[337912938,1726204253175,-1534.79,0.00013511,2]
[337912940,1726204253184,-1308.4,0.00013511,2]
[337912941,1726204253195,-1076.77,0.00013511,2]
[337912942,1726204253204,-670.02,0.00013511,2]
[337912943,1726204253213,-582.12,0.00013511,2]
[337912944,1726204253222,-10076.54,0.00013511,2]
[337912945,1726204253235,-6926.04,0.00013511,2]
[337912946,1726204253244,-500.0,0.00013511,2]
[337912947,1726204253253,-500.0,0.00013511,2]
[337912948,1726204253262,-40885.56,0.00013511,2]
[337912949,1726204253271,-500.0,0.00013511,2]
[337912950,1726204253280,-8985.98,0.00013511,2]
[337912951,1726204253290,-500.0,0.00013511,2]
[337912952,1726204253300,-4657.61,0.00013511,2]
[337912953,1726204253310,-6721.81643515,0.00013511,2]
[337912955,1726204253325,-201.15356485,0.00013511,2]
[337912957,1726204253334,-500.0,0.00013511,2]
[337912959,1726204253344,-120.25246815,0.00013511,2]
[337912961,1726204253356,-1241.55230948,0.00013511,2]
[337912963,1726204253367,-1702.89522237,0.00013511,2]
[337912965,1726204253376,-4361.55,0.00013511,2]
[337912967,1726204253385,-1325.96,0.00013511,2]
[337912969,1726204253395,-1242.98,0.00013511,2]
[337912971,1726204253404,-500.0,0.00013511,2]
[337912973,1726204253414,-3348.09,0.00013511,2]
[337912975,1726204253423,-2949.06,0.00013511,2]
[337912977,1726204253432,-1480.04046178,0.00013511,2]
[337913001,1726204253675,-357.7,0.000128,2]
[337913003,1726204253685,-199.26510006,0.00012963,2]
[337913006,1726204253696,-900.09,0.00012963,2]
[337913008,1726204253707,-1494.82037085,0.00012963,2]
[337913010,1726204253718,-3657.15452909,0.00012963,2]
[337913012,1726204253727,-6251.33,0.00013237,2]
[337913014,1726204253736,-1373.8686703,0.00013511,2]
[337913016,1726204253748,-229.04086792,0.00013511,2]
[337913018,1726204253758,-2657.70913008,0.00013511,2]
[337913020,1726204253769,-1788.63600368,0.00013511,2]
[337913022,1726204253779,-3076.63408916,0.00013511,2]
[337913025,1726204253790,-631.37538617,0.00013511,2]
[337913027,1726204253801,-808.97139607,0.00013511,2]
[337913029,1726204253811,-6862.91399484,0.00013511,2]
[337913031,1726204253820,-4124.09,0.00013511,2]
[337913033,1726204253829,-6251.33,0.00013511,2]
[337913034,1726204253839,-500.0,0.00013512,2]
[337913037,1726204253851,-500.0,0.00013512,2]
[337913039,1726204253860,-711.55,0.00013512,2]
[337913041,1726204253868,-500.0,0.00013512,2]
[337913043,1726204253878,-3327.34,0.00013512,2]
[337913044,1726204253887,-3179.7,0.00013512,2]
[337913046,1726204253896,-4372.51,0.00013512,2]
[337913048,1726204253906,-4647.46,0.00013512,2]
[337913050,1726204253915,-567.87,0.00013512,2]
[337913052,1726204253924,-500.0,0.00013512,2]
[337913054,1726204253934,-4304.36,0.00013512,2]
[337913056,1726204253943,-1540.8,0.00013512,2]
[337913058,1726204253953,-685.5,0.00013512,2]
[337913060,1726204253962,-500.0,0.00013512,2]
[337913062,1726204253971,-2881.39,0.00013512,2]
[337913064,1726204253981,-5820.52703892,0.00013512,2]
[337913075,1726204254073,-294.72296108,0.00013512,2]
[337913077,1726204254083,-27.07703892,0.00013512,2]
[337913079,1726204254095,-995.46054268,0.00013512,2]
[337913081,1726204254106,-361.43277495,0.00013512,2]
[337913083,1726204254118,-418.84953567,0.00013512,2]
[337913085,1726204254129,-467.34010778,0.00013512,2]
[337913087,1726204254139,-2190.52,0.00013512,2]
[337913089,1726204254148,-500.0,0.00013512,2]
[337913091,1726204254158,-500.0,0.00013512,2]
[337913093,1726204254167,-631.07,0.00013512,2]
[337913095,1726204254177,-500.0,0.00013512,2]
[337913097,1726204254186,-3067.79,0.00013512,2]
[337913099,1726204254195,-500.0,0.00013512,2]
[337913101,1726204254204,-2987.0,0.00013512,2]
[337913103,1726204254213,-500.0,0.00013512,2]
[337913105,1726204254222,-2358.71,0.00013512,2]
[337913107,1726204254232,-2991.06,0.00013512,2]
[337913109,1726204254242,-2974.05,0.00013512,2]
[337913111,1726204254252,-500.0,0.00013512,2]
[337913113,1726204254261,-2209.05,0.00013512,2]
[337913115,1726204254270,-886.27,0.00013512,2]
[337913117,1726204254279,-2164.82,0.00013512,2]
[337913118,1726204254289,-1290.24,0.00013512,2]
[337913120,1726204254298,-500.0,0.00013512,2]
[337913122,1726204254308,-1359.31,0.00013512,2]
[337913124,1726204254317,-1359.83,0.00013512,2]
[337913126,1726204254327,-500.0,0.00013512,2]
[337913128,1726204254336,-2496.71,0.00013512,2]
[337913129,1726204254345,-599.69,0.00013512,2]
[337913131,1726204254355,-2408.07,0.00013512,2]
[337913133,1726204254364,-960.5,0.00013512,2]
[337913135,1726204254373,-512.07473892,0.00013512,2]
[337913140,1726204254404,-129.91473499,0.00013512,2]
[337913142,1726204254413,-3639.54498426,0.00013512,2]
[337913144,1726204254424,-1093.32542617,0.00013512,2]
[337913146,1726204254435,-941.80958957,0.00013512,2]
[337913148,1726204254445,-280.7718352,0.00013512,2]
[337913150,1726204254456,-450.0,0.00013512,2]
[337913152,1726204254467,-12.2081648,0.00013512,2]
[337913154,1726204254476,-886.78705908,0.00013512,2]
[337913157,1726204254487,-87.94294092,0.00013512,2]
[337913159,1726204254496,-500.0,0.00013512,2]
[337913161,1726204254505,-956.89,0.00013512,2]
[337913162,1726204254515,-511.42,0.00013512,2]
[337913165,1726204254524,-1614.95238288,0.00013512,2]
[337913167,1726204254536,-283.51720375,0.00013512,2]
[337913169,1726204254547,-272.45041337,0.00013512,2]
[337913171,1726204254556,-332.57367096,0.00013512,2]
[337913173,1726204254566,-167.42632904,0.00013512,2]
[337913175,1726204254575,-2487.52262112,0.00013512,2]
[337913177,1726204254587,-1635.36737888,0.00013512,2]
[337913179,1726204254596,-38.17677978,0.00013512,2]
[337913181,1726204254607,-2919.66322022,0.00013512,2]
[337913183,1726204254616,-487.96966797,0.00013512,2]
[337913185,1726204254627,-315.12459524,0.00013512,2]
[337913187,1726204254637,-387.7317709,0.00013512,2]
[337913189,1726204254648,-167.23396589,0.00013512,2]
[337913191,1726204254657,-505.1,0.00013512,2]
[337913193,1726204254666,-1859.15,0.00013512,2]
[337913195,1726204254674,-4953.36,0.00013512,2]
[337913197,1726204254684,-3283.32,0.00013512,2]
[337913199,1726204254693,-2998.59,0.00013512,2]
[337913201,1726204254702,-2407.17,0.00013512,2]
[337913203,1726204254711,-603.7,0.00013512,2]
[337913205,1726204254720,-1239.13,0.00013512,2]
[337913207,1726204254729,-1165.67,0.00013512,2]
[337913209,1726204254738,-765.86,0.00013512,2]
[337913211,1726204254747,-500.0,0.00013512,2]
[337913213,1726204254756,-500.0,0.00013512,2]
[337913215,1726204254765,-1611.01,0.00013512,2]
[337913217,1726204254774,-2268.28091556,0.00013512,2]
[337913219,1726204254785,-486.16908444,0.00013512,2]
[337913221,1726204254795,-191.14524278,0.00013512,2]
[337913224,1726204254806,-2315.70475722,0.00013512,2]
[337913226,1726204254814,-734.11,0.00013512,2]
[337913227,1726204254823,-515.39,0.00013512,2]
[337913229,1726204254832,-1408.22,0.00013512,2]
[337913231,1726204254841,-552.56,0.00013512,2]
[337913233,1726204254850,-440.57281739,0.00013512,2]
[337913235,1726204254861,-1001.01897709,0.00013512,2]
[337913237,1726204254871,-277.38,0.00013512,2]
[337913240,1726204254882,-356.88365472,0.00013512,2]
[337913242,1726204254893,-467.5696332,0.00013512,2]
[337913244,1726204254904,-1809.3149176,0.00013512,2]
[337913246,1726204254913,-199.81664287,0.00013512,2]
[337913248,1726204254924,-300.18335713,0.00013512,2]
[337913250,1726204254934,-1046.17473736,0.00013512,2]
[337913252,1726204254945,-190.27526264,0.00013512,2]
[337913254,1726204254954,-500.0,0.00013512,2]
[337913256,1726204254963,-4639.72,0.00013512,2]
[337913258,1726204254972,-2629.89,0.00013512,2]
[337913260,1726204254982,-67.75116187,0.00013512,2]
[337914991,1726204513004,595.7,0.00012164,2]
[337914992,1726204598036,569.74751327,9.676e-05,2]
[337914993,1726204660786,175.01,0.00012132,2]
[337914994,1726204665048,572.66964383,9.676e-05,2]
[337914995,1726204667444,671.42,0.00012158,2]
[337914996,1726204697058,244.51,0.00010959,2]
[337914997,1726204698409,1050.0,0.00011,2]
[337914998,1726204723038,329.38,0.00010201,2]
[337914999,1726204723753,250.0,0.00012118,2]
[337915000,1726204766185,167.56,0.00012048,2]
[337915001,1726204788629,388.36,0.00012065,2]
[337915002,1726204879411,277.41,0.00012019,2]
[337915003,1726204973609,370.66,0.00012041,2]
[337915004,1726205040705,15829.91,0.00012001,2]
[337915005,1726205058092,1852.42,0.00012021,2]
[337915006,1726205133584,559.18,0.000121,2]
[337915007,1726205185016,154.84,0.00010959,2]
[337915009,1726205268788,323.1,0.00010091,2]
[337915010,1726205341753,-213.19793443,0.000123,2]
[337915011,1726205341782,-84.82323775,0.00012355,2]
[337915020,1726205424990,778.07,0.00012011,2]
[337915034,1726205431763,-238.27676225,0.00012355,2]
[337915036,1726205431773,-600.0,0.000126,4]
[337915038,1726205431782,-1300.0,0.000127,4]
[337915040,1726205431791,-2000.0,0.000128,4]
[337915041,1726205431800,-1665.33866486,0.000128,2]
[337915043,1726205431810,-163.66,0.00012849,2]
[337915045,1726205431822,-274.85,0.00012849,2]
[337915047,1726205431831,-150.0,0.00012858,2]
[337915048,1726205431841,-300.0,0.00012858,2]
[337915050,1726205431850,-461.6247,0.00012859,2]
[337915051,1726205431859,-10394.39291558,0.00012859,2]
[337915053,1726205431871,-29418.31492022,0.00012859,2]
[337915054,1726205431882,-332.75527609,0.00012859,2]
[337915055,1726205431893,-1231.85132041,0.00012859,2]
[337915056,1726205431905,-311.84172578,0.00012859,2]
[337915057,1726205431916,-833.36001832,0.00012859,2]
[337915058,1726205431928,-696.93784984,0.00012859,2]
[337915059,1726205431943,-9423.99800782,0.00012859,2]
[337915060,1726205431953,-3062.55904592,0.00012859,2]
[337915061,1726205431963,-295.47636855,0.00012861,2]
[337915062,1726205431972,-271.8048,0.00012861,2]
[337915063,1726205431981,-339.7032,0.00012861,2]
[337915064,1726205431991,-6031.2183,0.00012861,2]
[337915065,1726205432000,-2967.996,0.00012861,2]
[337915066,1726205432009,-26686.2219,0.00012861,2]
[337915067,1726205432019,-593.871,0.00012861,2]
[337915068,1726205432027,-1123.4572,0.00012862,2]
[337915069,1726205432036,-14327.8718,0.00012862,2]
[337915070,1726205432046,-1000.0,0.00012862,2]
[337915071,1726205432055,-1355.074,0.00012862,2]
[337915072,1726205432064,-40752.6091,0.00012862,2]
[337915073,1726205432073,-1552.8569,0.00012862,2]
[337915074,1726205432083,-2114.1509,0.00012862,2]
[337915075,1726205432091,-472.6256,0.00012862,2]
[337915076,1726205432100,-153.61647773,0.00012862,2]
[337915077,1726205432109,-158.56691586,0.00012862,2]
[337915078,1726205432118,-295.47636855,0.00012881,2]
[337915079,1726205432128,-2600.0,0.000129,4]
[337915080,1726205432137,-150.72,0.0001295,2]
[337915081,1726205432146,-150.72,0.00012951,2]
[337915082,1726205432156,-150.72,0.00012951,2]
[337915083,1726205432165,-499.99,0.00012952,2]